bitfinex-derivatives/quotes_SOLF0:USTF0_20251020
["timestamp","ask_amount","ask_price","bid_price","bid_amount"]
[1760922699590,3.25472337,185.88,185.82,7.5616]
[1760922701291,3.25472337,185.88,185.84,4.8413]
[1760922701498,3.25472337,185.88,185.85,2.72]
[1760922702199,3.25472337,185.88,185.8,2.72]
[1760922702405,1.4,185.95,185.8,2.72]
[1760922702698,9.5170929,185.95,185.87,4.8403]
[1760922702999,4.65472337,185.95,185.88,2.72]
[1760922703593,9.51476497,185.95,185.88,2.72]
[1760922703790,4.65472337,185.95,185.88,2.72]
[1760922704797,4.65472337,185.95,185.88,7.5601]
[1760922704999,3.25472337,185.96,185.88,2.72]
[1760922705300,3.25472337,185.96,185.88,7.5601]
[1760922706098,3.25472337,185.96,185.9,4.8398]
[1760922706303,3.25472337,185.96,185.9,7.5598]
[1760922707105,3.25472337,185.97,185.9,7.5598]
[1760922708002,3.25472337,185.97,185.91,4.8393]
[1760922708708,1.4,185.93,185.89,4.84]
[1760922709001,3.25472337,185.94,185.9,2.89]
[1760922709204,3.25472337,185.97,185.83,2.89]
[1760922709398,1.4,185.99,185.91,2.89]
[1760922709604,3.25472337,185.98,185.91,2.89]
[1760922710809,1.4,186.04,185.88,3.25472337]
[1760922711106,3.25472337,186.0,185.89,2.89]
[1760922711306,3.25472337,186.0,185.88,3.25472337]
[1760922711307,3.25472337,186.0,185.94,4.8386]
[1760922711907,3.25472337,185.97,185.94,4.8386]
[1760922712207,4.65472337,185.97,185.94,4.8386]
[1760922712406,4.65472337,185.97,185.93,2.89]
[1760922712710,3.25472337,185.97,185.86,2.89]
[1760922713204,4.65472337,185.97,185.89,4.84]
[1760922713805,3.25472337,185.94,185.89,4.84]
[1760922714003,4.65472337,185.94,185.89,7.73]
[1760922714213,4.65472337,185.94,185.9,2.89]
[1760922714400,3.25472337,185.94,185.91,2.89]
[1760922714606,1.4,185.98,185.91,2.89]
[1760922714909,4.65472337,185.95,185.91,2.89]
[1760922715110,4.65472337,185.95,185.91,7.7293]
[1760922715311,3.25472337,185.95,185.92,2.89]
[1760922715507,3.25472337,185.95,185.91,4.8393]
[1760922715508,3.25472337,185.97,185.93,2.89]
[1760922715808,3.25472337,185.94,185.91,2.89]
[1760922717015,3.25472337,185.94,185.91,7.7293]
[1760922717313,3.25472337,185.94,185.92,2.89]
[1760922717703,3.25472337,185.94,185.81,3.25472337]
[1760922717905,3.25472337,185.91,185.88,7.7301]
[1760922718109,3.25472337,185.91,185.88,4.8401]
[1760922718307,3.25472337,185.98,185.89,2.89]
[1760922718909,1.4,185.97,185.93,7.7287]
[1760922719904,3.25472337,185.98,185.93,4.8387]
[1760922720110,3.25472337,185.98,185.94,2.89]
[1760922720506,4.65472337,185.98,185.94,2.89]
[1760922721517,3.25472337,185.95,185.93,4.8387]
[1760922721719,4.65472337,185.95,185.93,4.8387]
[1760922722017,3.25472337,185.95,185.89,4.84]
[1760922722209,3.25472337,185.91,185.9,2.89]
[1760922723113,3.25472337,185.91,185.89,4.84]
[1760922724719,3.25472337,185.91,185.86,4.8406]
[1760922724918,4.65472337,185.88,185.86,4.8406]
[1760922725118,3.25472337,185.88,185.86,7.7306]
[1760922725821,3.25472337,185.88,185.86,4.8406]
[1760922726421,4.65472337,185.88,185.86,4.8406]
[1760922727516,1.4,185.87,185.83,4.8414]
[1760922727715,3.25472337,185.84,185.83,4.8414]
[1760922727920,3.25472337,185.85,185.74,2.89]
[1760922728320,1.4,185.91,185.73,2.89]
[1760922728522,3.25472337,185.87,185.73,2.89]
[1760922730021,3.25472337,185.87,185.86,4.8408]
[1760922730218,3.25472337,185.87,185.81,2.89]
[1760922730523,1.4,185.82,185.78,4.8429]
[1760922730716,3.25472337,185.79,185.76,2.89]
[1760922731116,4.65472337,185.79,185.75,4.8435]
[1760922731312,3.25472337,185.79,185.75,4.8435]
[1760922731516,4.65472337,185.79,185.75,4.8435]
[1760922731712,3.25472337,185.76,185.75,4.8435]
[1760922732116,4.65472337,185.79,185.75,4.8435]
[1760922732318,4.65472337,185.79,185.75,7.7135]
[1760922732516,4.65472337,185.79,185.76,4.8432]
[1760922733518,1.4,185.78,185.73,4.8441]
[1760922733719,1.4,185.75,185.71,2.87]
[1760922734216,3.25472337,185.76,185.71,2.87]
[1760922734519,3.25472337,185.76,185.72,4.8444]
[1760922734725,2.08635038,185.74,185.72,4.8444]
[1760922735923,3.48635038,185.74,185.72,4.8444]
[1760922736620,2.08635038,185.76,185.69,107.60696661]
[1760922736818,2.08635038,185.76,185.7,2.87]
[1760922737223,2.08635038,185.76,185.71,4.8447]
[1760922737425,1.4,185.75,185.71,7.5447]
[1760922737819,2.08635038,185.76,185.73,7.5442]
[1760922738519,2.08635038,185.76,185.69,110.30696661]
[1760922740124,2.08635038,185.76,185.72,7.5445]
[1760922740521,3.48635038,185.76,185.72,7.5445]
[1760922741631,2.08635038,185.79,185.69,109.69331699]
[1760922741822,2.08635038,185.79,185.72,2.7]
[1760922742017,1.4,185.8,185.73,2.08635038]
[1760922743123,3.48635038,185.8,185.76,4.8434]
[1760922743329,2.08635038,185.78,185.72,2.7]
[1760922744328,1.4,185.77,185.74,4.8439]
[1760922745022,1.4,185.76,185.74,4.8439]
[1760922745224,3.48635038,185.76,185.74,4.8439]
[1760922745422,2.08635038,185.76,185.71,4.8446]
[1760922745728,3.48635038,185.76,185.72,2.7]
[1760922746627,3.48635038,185.76,185.72,7.5442]
[1760922747428,2.08635038,185.76,185.72,7.5442]
[1760922747628,3.48635038,185.76,185.72,7.5442]
[1760922748223,3.48635038,185.76,185.72,4.8442]
[1760922748424,1.4,185.76,185.73,7.544]
[1760922748621,3.48635038,185.83,185.73,4.78635038]
[1760922748925,3.48635038,185.83,185.74,2.7]
[1760922749228,1.4,185.87,185.8,2.7]
[1760922749529,1.4,185.9,185.82,2.7]
[1760922749719,1.4,185.9,185.83,2.08635038]
[1760922750321,1.4,185.9,185.87,4.8405]
[1760922750523,1.4,185.9,185.82,4.78635038]
[1760922750721,1.4,185.84,185.77,7.5431]
[1760922751127,2.08635038,185.83,185.77,7.5431]
[1760922751433,1.4,185.88,185.8,2.7]
[1760922751830,2.08635038,185.89,185.8,2.7]
[1760922751831,2.08635038,185.89,185.83,4.8415]
[1760922752032,3.48635038,185.87,185.8,2.7]
[1760922752428,3.48635038,185.87,185.82,4.8419]
[1760922752626,1.4,185.86,185.82,4.8419]
[1760922753026,2.08635038,185.87,185.82,4.8419]
[1760922753235,1.4,185.85,185.82,4.8419]
[1760922753431,1.4,185.85,185.77,2.08635038]
[1760922753432,1.4,185.85,185.78,2.7]
[1760922753630,2.08635038,185.87,185.78,2.7]
[1760922753831,2.08635038,185.85,185.78,2.7]
[1760922754036,2.08635038,185.85,185.79,4.8424]
[1760922755034,1.4,185.86,185.78,2.7]
[1760922755238,1.4,185.86,185.81,4.8421]
[1760922755440,1.4,185.85,185.81,4.8421]
[1760922755642,1.4,185.86,185.81,4.8421]
[1760922755837,1.4,185.85,185.81,4.8421]
[1760922757246,2.08635038,185.87,185.81,4.8421]
[1760922757842,1.4,185.84,185.81,4.8421]
[1760922759446,2.08635038,185.85,185.81,7.5421]
[1760922759647,6.26498103,185.87,185.81,7.5421]
[1760922760341,2.08635038,185.87,185.81,7.5421]
[1760922760742,1.4,185.88,185.8,2.08635038]
[1760922761046,2.08635038,185.9,185.81,2.7]
[1760922761451,4.18175912,185.89,185.81,2.7]
[1760922761645,1.4,185.95,185.83,2.7]
[1760922761853,2.08635038,185.93,185.83,2.7]
[1760922762052,4.18112258,185.92,185.83,2.7]
[1760922762349,3.48635038,185.93,185.83,2.7]
[1760922762653,1.4,185.93,185.87,4.8404]
[1760922762951,1.4,185.93,185.86,2.7]
[1760922763146,1.4,185.93,185.89,4.84]
[1760922763347,1.4,185.93,185.89,7.54]
[1760922764649,3.48635038,185.93,185.89,7.54]
[1760922764847,2.08635038,185.91,185.86,4.8406]
[1760922765054,1.4,185.9,185.86,7.5406]
[1760922766055,3.48635038,185.9,185.86,7.5406]
[1760922766955,2.08635038,185.88,185.81,2.7]
[1760922767147,1.4,185.89,185.81,2.7]
[1760922767349,1.4,185.89,185.84,2.08635038]
[1760922767548,1.4,185.89,185.85,2.72]
[1760922767955,6.20092335,185.94,185.86,2.08635038]
[1760922768166,5.57435525,185.93,185.88,4.80635038]
[1760922768360,4.18454116,185.92,185.87,4.8404]
[1760922768561,1.39,185.91,185.87,4.8404]
[1760922768764,3.47635038,185.95,185.88,2.72]
[1760922768965,4.18464108,185.94,185.88,2.72]
[1760922769165,1.39,185.92,185.88,2.72]
[1760922769666,1.39,185.92,185.88,4.80635038]
[1760922770659,1.39,185.92,185.88,9.64635038]
[1760922770966,1.39,185.96,185.88,9.64635038]
[1760922771166,4.18526241,185.95,185.88,9.64635038]
[1760922771367,1.39,185.96,185.9,2.08635038]
[1760922771368,5.57526241,185.94,185.9,2.08635038]
[1760922771561,4.18526241,185.93,185.9,4.80635038]
[1760922771768,1.39,185.94,185.9,4.80635038]
[1760922771966,4.18503291,185.93,185.91,2.72]
[1760922772167,11.16763316,185.98,185.92,4.8392]
[1760922772367,1.39,185.96,185.92,4.8392]
[1760922772670,4.18469839,185.95,185.92,4.8392]
[1760922772863,4.18469839,185.94,185.92,4.8392]
[1760922773069,4.8104107,185.98,185.92,4.8392]
[1760922773268,1.39,185.96,185.92,4.8392]
[1760922773469,5.57385065,185.95,185.92,4.8392]
[1760922773672,1.39,185.95,185.92,4.8392]
[1760922773865,5.57340833,185.97,185.92,7.5592]
[1760922774067,1.39,185.97,185.92,7.5592]
[1760922774265,4.96630444,186.01,185.94,4.8386]
[1760922774467,4.18225161,186.0,185.94,4.8386]
[1760922774667,5.57225161,185.99,185.92,4.80635038]
[1760922774968,1.39,185.97,185.94,4.8386]
[1760922776770,1.39,185.98,185.94,4.8386]
[1760922777072,1.39,185.99,185.92,4.8392]
[1760922777274,4.17858373,185.98,185.92,4.8392]
[1760922777475,1.39,185.99,185.92,4.8392]
[1760922777678,5.56858373,185.98,185.94,2.72]
[1760922777877,4.17862544,185.97,185.92,4.8392]
[1760922778177,5.56862544,185.99,185.93,2.72]
[1760922778477,4.17862544,185.98,185.93,2.72]
[1760922778679,1.39,185.97,185.93,2.72]
[1760922778875,4.1776292,185.99,185.93,2.72]
[1760922779077,7.65397958,185.98,185.92,4.8392]
[1760922779277,5.5676292,185.97,185.92,7.5592]
[1760922779477,5.5676292,185.97,185.93,2.72]
[1760922779681,1.39,185.97,185.93,2.72]
[1760922780684,1.39,185.93,185.9,4.8397]
[1760922780887,1.39,185.93,185.9,7.5597]
[1760922781075,2.08635038,185.94,185.9,7.5597]
[1760922781985,2.08635038,185.94,185.91,2.72]
[1760922782182,2.08635038,185.94,185.88,4.8401]
[1760922782488,6.26529078,185.94,185.88,4.8401]
[1760922782885,2.08635038,185.94,185.88,4.8401]
[1760922783078,2.08635038,185.94,185.9,2.72]
[1760922783283,2.08635038,185.94,185.91,2.72]
[1760922783690,2.08635038,185.94,185.9,2.72]
[1760922783989,2.08635038,185.94,185.91,2.72]
[1760922785090,2.08635038,185.94,185.91,7.5594]
[1760922785594,2.08635038,185.94,185.92,2.72]
[1760922785794,2.08635038,185.96,185.88,2.72]
[1760922786494,2.08635038,185.96,185.92,4.8391]
[1760922786693,3.47635038,185.96,185.92,4.8391]
[1760922786896,3.47635038,185.96,185.92,2.72]
[1760922787096,4.80541306,186.01,185.8,9.6844]
[1760922787097,2.08635038,185.94,185.88,2.72]
[1760922787293,5.57081645,185.95,185.88,2.72]
[1760922787294,2.08635038,185.92,185.88,2.72]
[1760922787496,3.47635038,185.92,185.84,2.72]
[1760922787688,2.08635038,185.92,185.84,2.72]
[1760922788087,2.08635038,185.92,185.86,2.72]
[1760922788289,2.08635038,185.9,185.84,2.72]
[1760922788492,2.08635038,185.88,185.82,2.72]
[1760922788693,2.08635038,185.88,185.86,2.72]
[1760922790598,2.08635038,185.88,185.85,2.72]
[1760922790795,2.08635038,185.88,185.84,4.8411]
[1760922790991,2.08635038,185.88,185.86,2.72]
[1760922791400,3.47635038,185.88,185.84,7.5611]
[1760922791797,2.08635038,185.86,185.79,2.72]
[1760922791997,2.08635038,185.86,185.68,9.6907]
[1760922791998,2.08635038,185.82,185.77,2.72]
[1760922792196,2.08635038,185.82,185.75,2.72]
[1760922792404,2.08635038,185.8,185.75,7.5636]
[1760922792599,2.08635038,185.8,185.76,2.72]
[1760922792800,2.08635038,185.8,185.75,4.8436]
[1760922793005,2.08635038,185.8,185.77,2.72]
[1760922793813,2.08635038,185.78,185.75,2.72]
[1760922794011,2.08635038,185.76,185.73,2.72]
[1760922794415,2.08635038,185.76,185.74,2.72]
[1760922794715,2.08635038,185.76,185.56,13.28659285]
[1760922794716,2.08635038,185.76,185.67,2.72]
[1760922794910,2.08635038,185.76,185.68,2.72]
[1760922795111,2.08635038,185.76,185.7,4.8449]
[1760922795714,2.08635038,185.76,185.72,2.72]
[1760922796417,1.39,185.8,185.72,4.8444]
[1760922796616,3.47635038,185.77,185.72,7.5644]
[1760922796817,1.39,185.77,185.72,7.5644]
[1760922797209,5.58498285,185.78,185.72,2.72]
[1760922797413,1.4,185.78,185.72,2.72]
[1760922798219,3.25938455,185.79,185.73,4.8442]
[1760922800322,7.43923332,185.79,185.73,4.8442]
[1760922800627,3.25938455,185.79,185.73,4.8442]
[1760922803827,1.4,185.8,185.75,4.8436]
[1760922804030,3.25938455,185.82,185.76,2.82]
[1760922804424,7.43517509,185.82,185.76,2.82]
[1760922804625,3.25938455,185.82,185.76,2.82]
[1760922804826,4.65938455,185.82,185.76,2.82]
[1760922805128,8.83408695,185.82,185.76,2.82]
[1760922805433,4.65938455,185.82,185.76,2.82]
[1760922809327,4.65938455,185.82,185.78,2.82]
[1760922810027,1.4,185.81,185.78,2.82]
[1760922810626,3.25938455,185.82,185.74,7.6637]
[1760922810932,3.25938455,185.79,185.75,2.82]
[1760922811131,3.25938455,185.79,185.76,2.82]
[1760922811331,4.65938455,185.79,185.74,7.6637]
[1760922811737,3.25938455,185.79,185.74,4.8437]
[1760922811933,3.25938455,185.76,185.72,2.82]
[1760922812133,3.25938455,185.76,185.73,2.82]
[1760922812435,1.4,185.78,185.75,2.82]
[1760922813333,1.4,185.78,185.73,7.6642]
[1760922813534,1.4,185.78,185.74,2.82]
[1760922813837,3.25938455,185.79,185.75,2.82]
[1760922814437,4.65938455,185.79,185.75,2.82]
[1760922815433,3.25938455,185.76,185.73,4.8442]
[1760922815631,3.25938455,185.76,185.73,7.6642]
[1760922816037,3.25938455,185.76,185.73,4.8442]
[1760922816235,3.25938455,185.76,185.74,2.82]
[1760922817230,1.4,185.8,185.74,2.82]
[1760922817437,3.25938455,185.77,185.74,2.82]
[1760922820638,3.25938455,185.77,185.75,2.82]
[1760922823041,1.4,185.76,185.74,4.8437]
[1760922824333,3.25938455,185.77,185.74,4.8437]
[1760922824535,4.65938455,185.77,185.74,4.8437]
[1760922825139,4.65938455,185.77,185.74,7.6637]
[1760922825347,3.25938455,185.77,185.75,2.82]
[1760922826543,3.25938455,185.77,185.74,4.8437]
[1760922826846,4.65938455,185.77,185.74,4.8437]
[1760922828543,4.65938455,185.77,185.74,7.6037]
[1760922828944,3.25938455,185.77,185.75,2.76]
[1760922829845,3.25938455,185.77,185.74,7.6037]
[1760922830343,8.22568899,185.83,185.69,2.76]
[1760922830546,4.19858568,185.82,185.69,2.76]
[1760922830741,3.25938455,185.8,185.69,2.76]
[1760922830946,3.25938455,185.8,185.76,4.8432]
[1760922831246,3.25938455,185.8,185.66,2.76]
[1760922831845,3.25938455,185.77,185.68,2.76]
[1760922833046,3.25938455,185.77,185.74,2.76]
[1760922833246,4.21003137,185.76,185.75,2.76]
[1760922833442,4.21003137,185.76,185.73,7.6042]
[1760922833646,3.25938455,185.77,185.74,2.76]
[1760922833846,4.21007511,185.76,185.74,2.76]
[1760922834043,3.25938455,185.77,185.75,2.76]
[1760922834244,4.20993521,185.76,185.75,2.76]
[1760922834450,3.25938455,185.77,185.75,2.76]
[1760922835341,4.21654194,185.76,185.75,2.76]
[1760922835743,4.21654194,185.76,185.73,7.6042]
[1760922835953,3.25938455,185.77,185.74,2.76]
[1760922836151,4.21658424,185.76,185.74,2.76]
[1760922836450,4.21658424,185.75,185.74,2.76]
[1760922838450,4.21658424,185.75,185.73,4.8442]
[1760922838648,4.21658424,185.74,185.73,4.8442]
[1760922838855,4.21658424,185.74,185.73,7.6042]
[1760922844558,3.25938455,185.77,185.74,4.8437]
[1760922844863,4.22539894,185.76,185.75,2.76]
[1760922845062,3.25938455,185.8,185.66,2.76]
[1760922845362,5.62503343,185.79,185.75,7.6037]
[1760922845563,4.22503343,185.78,185.75,7.6037]
[1760922845764,4.22503343,185.77,185.75,7.6037]
[1760922846063,4.22503343,185.76,185.75,7.6037]
[1760922847660,8.22568899,185.8,185.78,4.8427]
[1760922847965,4.65938455,185.8,185.67,2.76]
[1760922848262,3.25938455,185.77,185.67,2.76]
[1760922848965,3.25938455,185.77,185.74,4.8437]
[1760922849359,3.25938455,185.77,185.67,2.76]
[1760922849566,4.65938455,185.8,185.78,4.8428]
[1760922849959,4.65938455,185.8,185.68,9.691]
[1760922850269,4.65938455,185.8,185.69,2.76]
[1760922850967,9.62568899,185.8,185.69,2.76]
[1760922851162,4.79984671,185.79,185.69,2.76]
[1760922851369,4.65938455,185.77,185.75,4.8434]
[1760922851868,1.4,185.76,185.72,4.8442]
[1760922852064,1.4,185.73,185.69,2.76]
[1760922852464,1.4,185.73,185.64,2.76]
[1760922852769,1.4,185.73,185.7,4.8449]
[1760922852969,3.25938455,185.74,185.7,7.6049]
[1760922853168,4.65938455,185.74,185.7,7.6049]
[1760922853863,3.25938455,185.71,185.7,4.8449]
[1760922854068,3.25938455,185.71,185.57,2.76]
[1760922854464,3.25938455,185.71,185.59,2.76]
[1760922854870,3.25938455,185.68,185.59,2.76]
[1760922858264,3.25938455,185.68,185.66,7.6358]
[1760922858767,2.08792905,185.67,185.66,7.6358]
[1760922859173,2.08792905,185.67,185.66,4.8458]
[1760922859372,2.08792905,185.67,185.66,7.6358]
[1760922860274,2.08792905,185.67,185.66,4.8458]
[1760922860670,1.4,185.66,185.6,2.79]
[1760922860868,2.08792905,185.64,185.55,2.79]
[1760922861967,2.08792905,185.62,185.61,4.8471]
[1760922862573,2.08792905,185.64,185.6,2.79]
[1760922862769,3.48792905,185.64,185.6,2.79]
[1760922863070,2.08792905,185.64,185.61,4.8471]
[1760922863273,2.08792905,185.64,185.55,2.79]
[1760922863569,2.08792905,185.64,185.57,2.79]
[1760922863776,2.08792905,185.66,185.57,2.79]
[1760922864575,3.48792905,185.66,185.62,7.6369]
[1760922864977,1.4,185.63,185.62,4.8469]
[1760922865585,3.48792905,185.64,185.62,4.8469]
[1760922865775,1.4,185.63,185.62,4.8469]
[1760922866777,1.4,185.63,185.6,4.8476]
[1760922866977,2.08792905,185.61,185.6,4.8476]
[1760922867284,2.08792905,185.61,185.6,7.6376]
[1760922867672,1.4,185.6,185.57,4.8482]
[1760922867976,2.08792905,185.58,185.55,2.79]
[1760922868180,2.08792905,185.58,185.5,2.79]
[1760922868375,2.08792905,185.58,185.56,4.8484]
[1760922868677,2.08792905,185.58,185.46,9.7022]
[1760922868678,1.4,185.57,185.48,2.79]
[1760922868875,2.08792905,185.55,185.51,4.8497]
[1760922869079,3.48792905,185.55,185.51,2.79]
[1760922869275,2.08792905,185.53,185.51,2.79]
[1760922869675,2.08792905,185.53,185.52,4.8494]
[1760922870078,2.08792905,185.53,185.51,2.79]
[1760922870675,3.48792905,185.53,185.49,7.6403]
[1760922870876,2.08792905,185.51,185.49,7.6403]
[1760922871283,2.08792905,185.51,185.45,176.21265314]
[1760922871284,3.48792905,185.51,185.46,7.641]
[1760922871480,2.08792905,185.49,185.47,2.79]
[1760922871774,1.4,185.55,185.5,7.6402]
[1760922871981,2.08792905,185.52,185.5,4.8502]
[1760922872381,3.48792905,185.52,185.5,4.8502]
[1760922872576,3.48792905,185.52,185.47,7.6407]
[1760922872783,2.08792905,185.5,185.47,7.6407]
[1760922873583,3.48792905,185.5,185.47,4.8507]
[1760922874582,1.4,185.5,185.45,176.21265314]
[1760922874781,1.4,185.5,185.46,2.79]
[1760922874984,1.4,185.5,185.45,176.21265314]
[1760922875180,1.4,185.5,185.46,2.79]
[1760922875982,1.4,185.5,185.46,7.6412]
[1760922876286,1.4,185.49,185.46,4.8512]
[1760922876479,1.4,185.48,185.45,176.21265314]
[1760922878885,1.4,185.49,185.43,7.6418]
[1760922879787,1.4,185.49,185.43,4.8518]
[1760922881083,1.4,185.53,185.43,2.79]
[1760922881282,1.4,185.52,185.43,4.87792905]
[1760922882088,1.4,185.52,185.46,4.8511]
[1760922882485,3.48792905,185.52,185.46,4.8511]
[1760922883485,1.4,185.52,185.48,2.79]
[1760922883685,1.4,185.54,185.46,2.79]
[1760922883991,2.08792905,185.53,185.46,2.79]
[1760922884186,2.08792905,185.51,185.46,4.8511]
[1760922884485,1.4,185.49,185.46,4.8511]
[1760922885582,2.08792905,185.51,185.44,4.8517]
[1760922885787,1.4,185.5,185.44,4.8517]
[1760922886186,2.08792905,185.49,185.44,4.8517]
[1760922886387,1.4,185.48,185.44,4.8517]
[1760922886785,1.4,185.48,185.44,7.6417]
[1760922888694,1.4,185.48,185.44,4.8517]
[1760922888893,1.4,185.48,185.45,2.79]
[1760922889490,3.47792905,185.51,185.45,2.79]
[1760922891196,3.47792905,185.51,185.45,7.6412]
[1760922892793,3.47792905,185.51,185.47,2.79]
[1760922892997,2.08792905,185.51,185.46,4.8509]
[1760922893396,1.39,185.52,185.48,2.79]
[1760922893598,1.39,185.51,185.48,2.79]
[1760922894488,1.39,185.52,185.46,4.8509]
[1760922895601,1.39,185.5,185.46,7.6409]
[1760922895804,1.39,185.5,185.46,4.8509]
[1760922896003,1.39,185.5,185.47,2.79]
[1760922898700,1.39,185.51,185.46,4.8509]
[1760922899000,5.57197382,185.5,185.46,4.8509]
[1760922899203,1.39,185.5,185.46,7.6409]
[1760922900302,2.08792905,185.52,185.46,7.6409]
[1760922900498,1.39,185.49,185.41,2.79]
[1760922900702,6.27315685,185.48,185.41,2.79]
[1760922900906,2.08792905,185.48,185.41,2.79]
[1760922901708,1.39,185.49,185.41,2.79]
[1760922901905,4.18728217,185.48,185.41,2.79]
[1760922902104,1.39,185.49,185.43,4.8519]
[1760922902300,5.5773548,185.48,185.44,2.79]
[1760922902505,1.39,185.48,185.44,2.79]
[1760922903001,2.08792905,185.5,185.44,2.79]
[1760922903208,4.18923226,185.49,185.44,2.08792905]
[1760922903403,2.08792905,185.54,185.45,2.79]
[1760922903608,4.19110005,185.53,185.45,2.79]
[1760922903804,4.19110005,185.52,185.49,4.8502]
[1760922904005,1.39,185.56,185.5,2.79]
[1760922904204,4.19083334,185.55,185.5,2.79]
[1760922904405,4.19083334,185.54,185.49,6.93812905]
[1760922904708,4.19083334,185.53,185.5,2.79]
[1760922904910,4.19083334,185.52,185.5,2.79]
[1760922905110,6.35639709,185.56,185.5,2.79]
[1760922905305,5.58466073,185.55,185.49,6.93812905]
[1760922905505,4.19466073,185.54,185.5,2.79]
[1760922905708,5.58466073,185.53,185.49,7.6402]
[1760922906013,4.19466073,185.52,185.51,2.79]
[1760922907301,4.19466073,185.52,185.47,4.8509]
[1760922907506,1.39,185.5,185.44,2.79]
[1760922907708,4.19466073,185.49,185.42,2.79]
[1760922907902,4.19466073,185.48,185.42,2.79]
[1760922908108,7.67258978,185.47,185.41,4.8525]
[1760922908303,4.20685075,185.46,185.42,2.79]
[1760922908500,4.20770397,185.45,185.42,2.79]
[1760922908706,4.20770397,185.44,185.42,2.79]
[1760922908906,4.20770397,185.43,185.42,2.79]
[1760922909507,4.20770397,185.43,185.4,2.79]
[1760922909707,4.20770397,185.42,185.41,2.79]
[1760922909906,7.05432614,185.48,185.41,2.79]
[1760922910109,4.21066276,185.47,185.43,2.79]
[1760922910312,4.21066276,185.46,185.44,2.79]
[1760922910513,4.21066276,185.45,185.43,2.79]
[1760922910711,4.21066276,185.44,185.43,2.79]
[1760922912402,4.21066276,185.44,185.41,2.66]
[1760922912708,4.21066276,185.43,185.41,2.66]
[1760922913009,4.21066276,185.42,185.41,2.66]
[1760922913212,4.21066276,185.42,185.39,2.66]
[1760922913413,4.21066276,185.41,185.39,2.66]
[1760922913610,4.21066276,185.4,185.39,2.66]
[1760922916106,4.21066276,185.4,185.37,47.7]
[1760922916305,4.21066276,185.39,185.36,114.31616264]
[1760922916504,1.41,185.42,185.36,116.97616264]
[1760922916710,4.21499492,185.41,185.36,116.97616264]
[1760922917014,4.96639709,185.43,185.36,112.12236264]
[1760922917015,5.62499492,185.4,185.36,112.12236264]
[1760922917211,5.62499492,185.4,185.36,2.66]
[1760922917212,4.21499492,185.39,185.36,2.66]
[1760922917512,4.21499492,185.38,185.36,2.66]
[1760922917812,4.2137401,185.37,185.34,7.6141]
[1760922918004,3.49792905,185.41,185.34,7.6141]
[1760922918202,4.21381041,185.4,185.34,7.6141]
[1760922918404,4.21381041,185.39,185.35,2.76]
[1760922918608,4.21381041,185.38,185.35,2.08792905]
[1760922918804,1.41,185.36,185.25,2.76]
[1760922919106,5.62251324,185.35,185.3,2.76]
[1760922919308,5.62251324,185.35,185.3,7.6151]
[1760922919309,4.21251324,185.34,185.3,7.6151]
[1760922919514,1.41,185.35,185.3,7.6151]
[1760922919814,4.20907587,185.34,185.3,7.6151]
[1760922920012,1.41,185.35,185.3,7.6151]
[1760922920213,1.41,185.34,185.3,7.6151]
[1760922920409,1.41,185.35,185.27,7.6161]
[1760922920615,4.20611623,185.34,185.27,4.84792905]
[1760922920818,1.41,185.35,185.27,2.76]
[1760922921014,4.20604432,185.34,185.27,2.76]
[1760922921214,1.41,185.35,185.27,2.76]
[1760922921616,4.20348789,185.34,185.27,2.76]
[1760922921819,1.41,185.35,185.27,2.76]